Cogmind - Beta 15 *** ADVENTURER MODE // 2025.07.18 @ 18:12:31 Player: Insider Result: Self-destructed Performance ------------- Evolutions (1) 500 Regions Visited (3) 600 Robots Destroyed (22) 110 Value Destroyed (557) 557 Prototype IDs (0) 0 Alien Tech Used (0) 0 Bonus (25) 25 TOTAL SCORE: 1792 Bonus ------- Follower Combat Kills 25 Cogmind --------- Core Integrity 185/400 Matter 300/300 Energy 265/265 System Corruption 0% Temperature Cool (0) Movement Core (1500) Ox29 Location -9/Materials Parts ------- > --- POWER (2) -------- Improved Ion Engine > --- PROPULSION (2) --- (None) > --- UTILITY (3) ------ Huge Storage Unit Hacking Suite > --- WEAPON (2) ------- Katana > --- INVENTORY (25) --- Light Ion Engine Small Storage Unit Compact Battery (200) Compact Battery (200) Advanced Targeting Computer Melee Analysis Suite Light Armor Plating Insulated Plating System Shield Beam Cannon Peak State ------------ > --- POWER ------------ Ion Engine Improved Ion Engine > --- PROPULSION ------- Aluminum Leg Carbon-fiber Leg > --- UTILITY ---------- Huge Storage Unit Advanced Targeting Computer Hacking Suite > --- WEAPON ----------- Katana Katana > --- INVENTORY -------- Light Ion Engine Small Storage Unit Compact Battery Compact Battery Advanced Targeting Computer Melee Analysis Suite ECM Suite Light Armor Plating System Shield Beam Cannon [Rating: 22] Favorites ----------- Power Ion Engine Engine Ion Engine Propulsion Aluminum Leg Leg Aluminum Leg Utility Hacking Suite Storage Small Storage Unit Processor Advanced Targeting Computer Hackware Hacking Suite Protection Insulated Plating Weapon Katana Energy Gun Small Laser Ballistic Gun Autogun Launcher Grenade Launcher Special Weapon Mining Laser Slashing Weapon Katana Build | -11 -10 -10 -9 ------- Run | Yrd Mat Min Mat Slots Evolved 2 | . . . 2 Power 1 | . . . 1 Propulsion . | . . . . Utility 1 | . . . 1 Weapon . | . . . . Parts Attached 23 | 6 4 2 11 Power 4 | 1 1 . 2 Engine 4 | 1 1 . 2 Core . | . . . . Reactor . | . . . . Propulsion 5 | 2 . . 3 Treads . | . . . . Leg 5 | 2 . . 3 Wheel . | . . . . Hover . | . . . . Flight . | . . . . Utility 6 | 1 2 1 2 Device . | . . . . Storage 2 | 1 1 . . Processor 2 | . 1 1 . Hackware 1 | . . . 1 Protection 1 | . . . 1 Artifact . | . . . . Weapon 8 | 2 1 1 4 Energy Gun 3 | 2 1 . . Energy Cannon . | . . . . Ballistic Gun 1 | . . . 1 Ballistic Cannon . | . . . . Launcher 1 | . . . 1 Special Weapon 1 | . . 1 . Impact Weapon . | . . . . Slashing Weapon 2 | . . . 2 Piercing Weapon . | . . . . Special Melee Weapon . | . . . . Unidentified Prototypes . | . . . . Parts Lost 5 | . . . 5 Power 1 | . . . 1 Propulsion 2 | . . . 2 Utility 1 | . . . 1 Weapon 1 | . . . 1 Highest Loss Streak 4 | . . . 4 To Critical Strikes . | . . . . Average Backups 7 | 2 4 6 8 Power 1 | . 1 2 1 Propulsion . | . . 1 . Utility 4 | . . 2 6 Weapon 1 | 1 1 1 1 Tool/Special . | . . . . Unused Backups 10 | . . . 10 Power 1 | . . . 1 Propulsion . | . . . . Utility 8 | . . . 8 Weapon 1 | . . . 1 Tool/Special . | . . . . Average Slot Usage (%) 94 | . 85 100 96 Engine 19 | . 13 14 21 Leg 22 | . 27 28 20 Storage 11 | . 14 14 11 Processor 7 | . 1 14 7 Hackware 7 | . . . 10 Protection 2 | . . . 2 Energy Gun 9 | . 27 26 2 Ballistic Gun 2 | . . . 3 Launcher 3 | . . . 4 Special Weapon 1 | . . 1 1 Slashing Weapon 7 | . . . 9 Peak Build Rating 22 | 6 8 10 22 Average Rating 14 | 4 6 9 17 On Entrance 6 | . 6 8 10 Naked Turns . | . . . . Heaviest Build 99 | 11 13 13 99 Greatest Support 25 | 20 20 20 25 Greatest Overweight (x) 32 | 2 . . 32 Average Overweight (x) . | . . . 1 Largest Inventory Capacity 25 | 8 25 8 25 Average Capacity 13 | 7 8 8 15 Most Carried 13 | 6 8 8 13 Average Carried 7 | 2 4 7 8 Final Capacity 25 | 8 8 8 25 Final Carried 10 | 2 5 8 10 Class Distribution -------------------- 68% | Hacker-Mutant 31% | Mutant Dominant Class ---------------- Mutant | -10/Materials Mutant | -10/Mines Hacker-Mutant | -9/Materials Resources | -11 -10 -10 -9 ----------- Run | Yrd Mat Min Mat Matter Collected 678 | 218 69 63 328 Remotely . | . . . . Salvage Created 568 | . 176 . 392 Parts 35 | . 9 . 26 Haulers Intercepted . | . . . . Recyclers Shooed . | . . . . Parts Field Recycled . | . . . . Retrieved Matter . | . . . . Parts Self-Destructed . | . . . . Prevented . | . . . . Kills | -11 -10 -10 -9 ------- Run | Yrd Mat Min Mat Combat Hostiles Destroyed 12 | . 2 . 10 Melee 2 | . . . 2 Guns 6 | . 2 . 4 AOE 4 | . . . 4 Classes Destroyed 5 | . 2 . 3 Worker 3 | . . . 3 Watcher 7 | . 3 . 4 Swarmer 4 | . . . 4 Grunt 4 | . 2 . 2 Sentry 4 | . . . 4 Best Kill Streak 4 | . 2 . 4 Combat Bots Only 4 | . 1 . 4 Max Kills in Single Turn 2 | . 1 . 2 Gunslinging . | . . . . Exploded 2 | . . . 2 Melee 1 | . . . 1 Uniques/NPCs Destroyed . | . . . . Combat | -11 -10 -10 -9 -------- Run | Yrd Mat Min Mat Hostile Shots Fired 123 | . 17 1 105 Missed 33 | . 5 1 27 Hits 90 | . 12 . 78 Projectile 90 | . 12 . 78 Critical Strikes 6 | . . . 6 Damage Taken 1040 | . 133 . 907 Core 250 | . 35 . 215 Absorbed by Shields . | . . . . Ignored by Resistances 324 | . 43 . 281 Core Remaining (%) 93 | 100 . 86 . Volleys Fired 49 | . 15 3 31 Largest 2 | . 2 2 2 Hottest 140 | . 80 140 70 Shots Fired 77 | . 29 4 44 Gun 63 | . 29 3 31 Cannon . | . . . . Launcher 13 | . . . 13 Special 1 | . . 1 . Kinetic 17 | . . . 17 Thermal 31 | . 14 3 14 Explosive 13 | . . . 13 Electromagnetic 16 | . 15 1 . Robot Hit Streak 12 | . 12 2 10 Robot Miss Streak 3 | . 3 . 2 Penetration Max . | . . . . Secondary Targets . | . . . . Shots Hit Robots 60 | . 20 1 39 Core Hits 39 | . 10 . 29 Critical Kills . | . . . . Critical Parts Destroyed . | . . . . Critical Strikes 1 | . . . 1 Sever 1 | . . . 1 Melee Attacks 18 | . . . 18 Impact . | . . . . Slashing 18 | . . . 18 Piercing . | . . . . Sneak Attacks 2 | . . . 2 Combat Hostiles . | . . . . Follow-up Attacks 2 | . . . 2 Damage Inflicted 1618 | . 359 20 1239 Guns 511 | . 255 13 243 Cannons . | . . . . Explosions 645 | . 89 . 556 Melee 436 | . . . 436 Ramming 26 | . 15 7 4 Kinetic 110 | . . . 110 Thermal 324 | . 191 . 133 Explosive 497 | . . . 497 Electromagnetic 225 | . 153 13 59 Impact . | . . . . Slashing 436 | . . . 436 Piercing . | . . . . Highest Corruption . | . . . . Average Corruption . | . . . . Corruption Purged . | . . . . Corruption Blocked . | . . . . Overload Shots . | . . . . Overflow Damage 48 | . . . 48 Projectiles . | . . . . Explosions 12 | . . . 12 Melee 36 | . . . 36 Knockbacks . | . . . . Impact . | . . . . Kinetic . | . . . . Secondary . | . . . . Self-Inflicted Damage 57 | . 28 . 29 Shots 3 | . 1 . 2 Rammed 2 | . . . 2 Targets Rammed 6 | . 3 1 2 Kicked 4 | . 3 1 . Crushed . | . . . . Highest Temperature 276 | . 276 40 39 Average Temperature 64 | . 138 24 14 Received Heat Transfer 762 | . 78 . 684 Siege Activations . | . . . . Martial Activations . | . . . . Shielding Activations . | . . . . Robots Disrupted 1 | . . . 1 Combat Hostiles . | . . . . Robots Corrupted . | . . . . Combat Hostiles . | . . . . Parts Fried . | . . . . Impact Corruptions . | . . . . Robots Melted . | . . . . Combat Hostiles . | . . . . Parts Melted . | . . . . Heat Transferred 675 | . 375 . 300 Parts Sabotaged . | . . . . Parts Stolen . | . . . . Parts Stripped . | . . . . Power Chain Reactions 3 | . 3 . . Alert | -11 -10 -10 -9 ------- Run | Yrd Mat Min Mat Maximum Alert Level . | . . . . Low Security (%) 100 | 100 100 100 100 Level 1 . | . . . . Level 2 . | . . . . Level 3 . | . . . . Level 4 . | . . . . Level 5 . | . . . . High Security . | . . . . Max Security . | . . . . Peak Influence 181 | . 50 21 181 Initial 5 | . . 5 3 Average 40 | . 10 3 52 Influence Increases 639 | . 96 31 512 Destroy 0b10 Robot/C 260 | . 40 . 220 Destroy 0b10 Robot/NC 55 | . 15 . 40 Destroy Leader 84 | . 16 . 68 Allied During Kill 1 | . . . 1 Successful Hack 4 | . 1 . 3 Disable Machine 54 | . 9 . 45 Destroy Structure 106 | . 15 1 90 Lose Combat Pursuer 75 | . . 30 45 Influence Decreases 594 | . 79 37 478 Entered New Map 20 | . . 12 8 Time Decay 569 | . 79 25 465 Lost Part 5 | . . . 5 Squads Dispatched 1 | . . 1 . Investigation 1 | . . 1 . Extermination . | . . . . Reinforcement . | . . . . Assault . | . . . . Garrison . | . . . . Intercept . | . . . . Searches Triggered . | . . . . Construction Impeded . | . . . . Haulers Reinforced . | . . . . Active Scanning Responses . | . . . . Cargo Convoy Interrupts . | . . . . Stealth | -11 -10 -10 -9 --------- Run | Yrd Mat Min Mat Distress Signals 1 | . . . 1 Communications Jammed . | . . . . Distress Signals . | . . . . Times Spotted 28 | . 5 1 22 Peak Tracking Total 4 | . 2 2 4 Tactical Retreats 4 | . . 1 3 Traps | -11 -10 -10 -9 ------- Run | Yrd Mat Min Mat Traps Triggered 2 | . 2 . . Indirectly . | . . . . Trap Hack Attempts . | . . . . Triggered . | . . . . Disarmed . | . . . . Reprogrammed . | . . . . Reused . | . . . . Traps Extracted . | . . . . Installed . | . . . . Triggered . | . . . . Machines | -11 -10 -10 -9 ---------- Run | Yrd Mat Min Mat Machines Disabled 6 | . 1 . 5 Max in Single Turn 2 | . 1 . 2 Machines Repaired . | . . . . Machines Dismantled . | . . . . Machines Sabotaged . | . . . . Overloaded Fab Kills . | . . . . Hacking | -11 -10 -10 -9 --------- Run | Yrd Mat Min Mat Machines Accessed 4 | . 1 1 2 Terminals 3 | . 1 . 2 Fabricators . | . . . . Repair Stations . | . . . . Recycling Units . | . . . . Scanalyzers . | . . . . Garrison Access . | . . . . Total Hacks 7 | . 2 1 4 Successful 6 | . 2 1 3 Failed 1 | . . . 1 Catastrophic . | . . . . Database Lockouts . | . . . . Manual . | . . . . Terminals 6 | . 2 . 4 Fabricators . | . . . . Repair Stations . | . . . . Recycling Units . | . . . . Scanalyzers . | . . . . Garrison Access . | . . . . Terminal Hacks 6 | . 2 1 3 Record 2 | . 2 . . Open Door 1 | . . 1 . Locate Traps 1 | . . . 1 Dispatch Records 1 | . . . 1 Transport Status 1 | . . . 1 Fabricator Hacks . | . . . . Repair Station Hacks . | . . . . Recycling Unit Hacks . | . . . . Scanalyzer . | . . . . Garrison Access Hacks . | . . . . Unauthorized Hacks . | . . . . Terminals . | . . . . Fabricators . | . . . . Repair Stations . | . . . . Recycling Units . | . . . . Scanalyzers . | . . . . Garrison Access . | . . . . Data Cores Recovered . | . . . . Used . | . . . . Hacking Detections 3 | . 1 . 2 Full Trace Events . | . . . . Feedback Events . | . . . . Feedback Blocked . | . . . . Robot Schematics Acquired . | . . . . Robots Built . | . . . . Authchips . | . . . . Time . | . . . . Total Robot Build Rating . | . . . . Part Schematics Acquired . | . . . . Parts Built . | . . . . Authchips . | . . . . Time . | . . . . Total Part Build Rating . | . . . . Parts Repaired . | . . . . Time . | . . . . Parts Recycled . | . . . . Recycled Matter . | . . . . Retrieved Matter . | . . . . Retrieved Components . | . . . . Parts Scanalyzed . | . . . . Part Schematics Acquired . | . . . . Parts Damaged . | . . . . Bothacking | -11 -10 -10 -9 ------------ Run | Yrd Mat Min Mat Used RIF Installer . | . . . . Robots Hacked . | . . . . Non-combat . | . . . . Combat . | . . . . Robot Hacks Applied . | . . . . Relay Couplers Released . | . . . . Fabnet Peak Effective % . | . . . . Robots Rewired . | . . . . Allies Hacked . | . . . . Hacks Repelled . | . . . . Allies | -11 -10 -10 -9 -------- Run | Yrd Mat Min Mat Total Allies 1 | . . 1 . Largest Group 1 | . . 1 1 Highest-Rated Group 31 | . . 31 31 Highest-Rated Ally 31 | . . 31 31 Total Orders . | . . . . Ally Attacks 9 | . . . 9 Total Damage 106 | . . . 106 Kills 2 | . . . 2 Allies Corrupted . | . . . . Allies Melted . | . . . . Intel | -11 -10 -10 -9 ------- Run | Yrd Mat Min Mat Active Infowar (turns) 121 | . 46 75 . Optics 121 | . 46 75 . Robot Analysis Total . | . . . . Derelict Logs Recovered . | . . . . Drone Launches . | . . . . Drone Recoveries . | . . . . Exploration | -11 -10 -10 -9 ------------- Run | Yrd Mat Min Mat Turns Passed 1923 | 61 349 123 1390 Spaces Moved 995 | 47 237 88 623 Core 17 | 16 . . 1 Treads . | . . . . Legs 978 | 31 237 88 622 Wheels . | . . . . Hover . | . . . . Flight . | . . . . Fastest Speed 50 | 50 120 120 120 Average Speed 166 | 102 120 120 194 Slowest Speed 1650 | 150 120 120 1650 Overloaded Moves . | . . . . Propulsion Burnouts . | . . . . Robots Hopped . | . . . . Potential Cave-ins . | . . . . Cave-ins Triggered . | . . . . Exploration Rate (%) 27 | 4 45 20 41 Regions Visited 3 Branch Regions 1 Pre-discovered Areas . | . . . . Known Exits Taken . | . . . . Unknown Exits Taken 3 | 1 1 1 . Scrap Searched . | . . . . Spaces Dug 3 | . . 1 2 Terrain Destroyed 104 | . 12 1 91 Melee 2 | . . . 2 Projectile 1 | . . 1 . AOE 101 | . 12 . 89 Terrain Rammed . | . . . . Walls Destroyed . | . . . . Machines Disabled . | . . . . Actions | -11 -10 -10 -9 --------- Run | Yrd Mat Min Mat Total 1135 | 59 270 99 707 Wait 4 | 1 1 1 1 Move 992 | 46 236 87 623 Hop . | . . . . Pick Up 29 | 6 7 4 12 Fast Attach 6 | 2 2 . 2 Attach 12 | 4 4 1 3 Detach 1 | . . . 1 Swap 10 | . 2 1 7 Drop 11 | . . 1 10 Fire 49 | . 15 3 31 Melee 15 | . . . 15 Ram 2 | . . . 2 Kick 4 | . 3 1 . Crush . | . . . . Escape Stasis . | . . . . Rewire . | . . . . Trap . | . . . . Miscellaneous . | . . . . Route ------- -11/Scrapyard -10/Materials (discovered 2 exits: *Mat / *Min) -10/Mines -9/Materials (discovered 1 exit: [*Mat]) History --------- Turn | Location | Event 8 | -11/Scrapyard | Discovered new exit (range 16) 62 | -11/Scrapyard | Entered Materials 63 | -10/Materials | Met a group of wandering Federalists 210 | -10/Materials | Discovered new exit (range 7) 310 | -10/Materials | Build established: Mutant 373 | -10/Materials | Discovered new exit (range 9) 411 | -10/Materials | Entered Mines 429 | -10/Mines | Met a Derelict shopkeep closing up shop 509 | -10/Mines | Discovered new exit (range 8) 512 | -10/Mines | Received a Mining Laser from a helpful Derelict 534 | -10/Mines | Entered Materials 534 | -9/Materials | Accompanied by 1 ally 534 | -9/Materials | Evolved 2 slots: Power x1, Utility x1 907 | -9/Materials | Build established: Hacker-Mutant 1783 | -9/Materials | Discovered new exit (range 8) 1911 | -9/Materials | Core integrity fell below 50% 1924 | -9/Materials | Self-destructed Last Messages --------------- 01723_ U-05 Engineer builds a Wall. 01783_ EXIT=FOUND 01796_ C-30 ARC bursts open, deploying its payload. 01796_ G-47 Trooper unfolds itself. 01796_ G-34 Mercenary unfolds itself. 01820_ Katana follow-up attack on G-34 Mercenary. 01820_ G-34 Mercenary Sml. Laser severed. 01834_ Katana follow-up attack on G-47 Trooper. 01836_ Carbon-fiber Leg destroyed. 01851_ Critical hit (Burn: +37). 01870_ Aluminum Leg destroyed. 01878_ Katana destroyed. 01880_ Ion Engine destroyed. 01891_ Slammed into G-47 Trooper. 01896_ Insulated Plating destroyed. 01898_ Critical hit (Burn: +37). 01906_ Slammed into G-47 Trooper. 01910_ Critical hit (Burn: +37). 01921_ Destroyed Lgt. Nuclear Core. 01921_ G-47 Trooper destroyed. Map ----- +----------------------------------------------------+ | ########### ### """ ?????????????? | | # # # """ ?????????????? | | # """# + """ ??????????????? | | # T"# # #???????????? | | # """ """# # """ #???????????? | | # """ # # """ #???????????? | | # """ # # """ ????????????? | | # # # #???????????? | | # # ######+###???????????? | | #####+##### #??# ###+####????? | | * #??# #????? | | ! #??# " < #????? | | #??# #????? | | ## ############## #??# ########????? | | ########??????# #??## ##???????????? | | # #??????# #???# #????????????? | | " # """#??????# #???# #????????????? | | " #? """???????# #???# ############?? | | " #?[ """???????# #???#[ ## #?? | | #?? ?#????### ##### ## #?? | | ??? ?##### # ## ##% ## """ #?? | | ######+########## #### # """ #?? | | *[ % % * # """ "" #?? | | = a [[ + "" T" #?? | | %*%* = =% # """ "" #?? | | #############+##########!@* # #?? | | ######### ## #####+#############?? | | ## # ####^^ ! #?????????? | | ## # #??# " " ##????????? | | #? # #??# #????????? | | #? # #??#^""" """ ##????????? | | #?? ! # #??# [ #????????? | | #?? ########??# ^|[= ##????????? | | #######+##+#?????????# == ^ #?????????? | | %[= #?????????# = #?????????? | | =%! #?????????###########?????????? | | * #?????????????????????????????? | | ####+####?????????????????????????????? | | ####? ????????????????????????????????? | | #???# """????????????????????????????????? | | ????# """ ???????????????????????????????? | | ????# """ ???????????????????????????????? | | ????# !??????????????????????????????? | | ????# ??????????????????????????????? | | ????#+######?????????????????????????????? | | ?????????????????????????????????????????? | | ?????????????????????????????????????????? | | ?????????????????????????????????????????? | | ?????????????????????????????????????????? | | ?????????????????????????????????????????? | +----------------------------------------------------+ Best States ------------- Heat Dissipation 28 Energy Generation 17 Energy Capacity 415 Matter Stores 300 Matter Capacity 300 Sight Range 18 Terrain Scan Density 10 Armor Coverage 150 Resistance: KI 20 Resistance: TH 20 Resistance: EX 20 Resistance: EM 35 Resistance: I 20 Resistance: S 20 Resistance: P 20 Evasion (%) 55 Targeting Accuracy 8 Offensive Hacking 20 Item Schematics ----------------- None Robot Schematics ------------------ None Fabricated ------------ Nothing Repaired ---------- Nothing Alien Tech Used ----------------- None Achievements -------------- None Challenges ------------ None Game ------ Seed DamperSpreadMicroactuators Manual? 0 Play Time 00:25:13 Cumulative 3.3 hours Start 2025.07.18 @ 17:48:16 End 2025.07.18 @ 18:12:31 Sessions 1 Manual Loads 0 Difficulty Adventurer Special Mode None Game No. 8 Rogue 0 Adventurer 8 Explorer 0 Win Type - Total 0 Types 0/0/0/0/0/0/0/0/0/0 Lore% 0 Gallery% 8 Achievement% 7 Wizard Run 0 Options --------- Layout 0 ASCII 0 Keyboard 0 Movement Numpad Keybinds 0 Fullscreen 2 Font 18/SmallcapsGlow Map View 91x25 Zoom Use 99% Tactical HUD 1 Map Filters NONE Filters NONE Steam 1 RUN: 443d1df6-be30-48a9-b075-05a58a8509ca